fUSD/lending_fUSD_20240814
["ID","MTS","AMOUNT","RATE_DAILY","PERIOD"]
[334813869,1723603863034,-500.0,0.00013972,2]
[334813870,1723603863043,-1932.0,0.00013972,2]
[334813871,1723603863052,-4811.5,0.00013972,2]
[334813872,1723603863061,-500.0,0.00013972,2]
[334813873,1723603863071,-500.0,0.00013972,2]
[334813874,1723603863080,-16984.73,0.00013972,2]
[334813875,1723603863089,-1408.21,0.00013972,2]
[334813876,1723603863098,-1212.188302,0.00013972,2]
[334813877,1723603863111,-1212.188302,0.00013972,2]
[334813878,1723603863120,-500.0,0.00013972,2]
[334813879,1723603863130,-500.0,0.00013972,2]
[334813880,1723603863140,-500.0,0.00013972,2]
[334813881,1723603863150,-3491.45,0.00013972,2]
[334813882,1723603863159,-1212.188302,0.00013972,2]
[334813883,1723603863168,-615.57,0.00013972,2]
[334813884,1723603863178,-500.0,0.00013972,2]
[334813885,1723603863187,-500.0,0.00013972,2]
[334813886,1723603863196,-1212.188302,0.00013972,2]
[334813887,1723603863205,-500.0,0.00013972,2]
[334813888,1723603863215,-1212.188302,0.00013972,2]
[334813889,1723603863224,-1049.0,0.00013972,2]
[334813890,1723603863232,-1212.188302,0.00013972,2]
[334813891,1723603863241,-1741.08,0.00013972,2]
[334813892,1723603863251,-500.0,0.00013972,2]
[334813893,1723603863260,-3462.69,0.00013972,2]
[334813894,1723603863270,-1076.68,0.00013972,2]
[334813895,1723603863279,-760.25,0.00013972,2]
[334813896,1723603863288,-547.29,0.00013972,2]
[334813897,1723603863298,-500.0,0.00013972,2]
[334813898,1723603863307,-500.0,0.00013972,2]
[334813899,1723603863316,-500.0,0.00013972,2]
[334813900,1723603863327,-500.0,0.00013972,2]
[334813901,1723603863336,-1201.41,0.00013972,2]
[334813902,1723603863345,-9705.83,0.00013972,2]
[334813903,1723603863357,-500.0,0.00013972,2]
[334813904,1723603863367,-500.0,0.00013972,2]
[334813905,1723603863376,-500.0,0.00013972,2]
[334813906,1723603863385,-500.0,0.00013972,2]
[334813907,1723603863395,-500.0,0.00013972,2]
[334813908,1723603863404,-500.0,0.00013972,2]
[334813909,1723603863414,-500.0,0.00013972,2]
[334813910,1723603863423,-500.0,0.00013972,2]
[334813911,1723603863433,-682.35,0.00013972,2]
[334813912,1723603863442,-21824.02,0.00013972,2]
[334813913,1723603863451,-500.0,0.00013972,2]
[334813914,1723603863708,-964.16,0.00013972,2]
[334813915,1723603863717,-728.58,0.00013972,2]
[334813916,1723603863727,-2013.72,0.00013972,2]
[334813917,1723603863738,-1369.46,0.00013972,2]
[334813918,1723603863747,-2899.28,0.00013972,2]
[334813919,1723603863757,-832.56,0.00013972,2]
[334813920,1723603863767,-953.43,0.00013972,2]
[334813921,1723603863776,-4067.6,0.00013972,2]
[334813922,1723603863786,-205.89902984,0.00013972,2]
[334813923,1723603863795,-1756.12,0.00013972,2]
[334813924,1723603863805,-500.0,0.00013972,2]
[334813925,1723603863815,-500.0,0.00013972,2]
[334813926,1723603863824,-664.79,0.00013972,2]
[334813927,1723603863834,-822.46,0.00013972,2]
[334813928,1723603863843,-658.27,0.00013972,2]
[334813929,1723603863855,-500.0,0.00013972,2]
[334813930,1723603863865,-767.26,0.00013972,2]
[334813931,1723603863875,-1097.99,0.00013972,2]
[334813932,1723603863885,-547.57,0.00013972,2]
[334813933,1723603863895,-1115.22,0.00013972,2]
[334813934,1723603863906,-500.0,0.00013972,2]
[334813935,1723603863915,-1272.25,0.00013972,2]
[334813936,1723603863925,-500.0,0.00013972,2]
[334813937,1723603863935,-531.71,0.00013972,2]
[334813938,1723603863948,-723.33,0.00013972,2]
[334813939,1723603863957,-3348.83,0.00013972,2]
[334813940,1723603863967,-1223.52,0.00013972,2]
[334813941,1723603863977,-500.0,0.00013972,2]
[334813942,1723603863989,-2161.17,0.00013972,2]
[334813943,1723603863999,-500.0,0.00013972,2]
[334813944,1723603864009,-500.0,0.00013972,2]
[334813945,1723603864018,-6910.51,0.00013972,2]
[334813946,1723603864028,-609.36,0.00013972,2]
[334813947,1723603864038,-500.0,0.00013972,2]
[334813948,1723603864048,-880.05,0.00013972,2]
[334813949,1723603864058,-500.0,0.00013972,2]
[334813950,1723603864067,-1173.02,0.00013972,2]
[334813951,1723603864077,-500.0,0.00013972,2]
[334813952,1723603864086,-2224.37,0.00013972,2]
[334813953,1723603864096,-1181.05,0.00013972,2]
[334813954,1723603864109,-500.0,0.00013972,2]
[334813955,1723603864119,-1939.79,0.00013972,2]
[334813956,1723603864128,-500.0,0.00013972,2]
[334813957,1723603864138,-500.0,0.00013972,2]
[334813958,1723603864148,-725.28,0.00013972,2]
[334813959,1723603864157,-26843.87,0.00013972,2]
[334813960,1723603864167,-500.0,0.00013972,2]
[334813961,1723603864177,-500.0,0.00013972,2]
[334813962,1723603864187,-500.0,0.00013972,2]
[334813963,1723603864197,-3779.35,0.00013972,2]
[334813964,1723603864207,-500.0,0.00013972,2]
[334813965,1723603864217,-9040.84,0.00013972,2]
[334813966,1723603864226,-1046.28,0.00013972,2]
[334813967,1723603864236,-1333.4,0.00013972,2]
[334813968,1723603864246,-767.18,0.00013972,2]
[334813969,1723603864256,-1164.04,0.00013972,2]
[334813970,1723603864266,-500.0,0.00013972,2]
[334813971,1723603864276,-500.0,0.00013972,2]
[334813972,1723603864286,-500.0,0.00013972,2]
[334813973,1723603864297,-500.0,0.00013972,2]
[334813974,1723603864307,-500.0,0.00013972,2]
[334813975,1723603864317,-500.0,0.00013972,2]
[334813976,1723603864327,-1701.51,0.00013972,2]
[334813977,1723603864338,-1301.52,0.00013972,2]
[334813978,1723603864347,-500.0,0.00013972,2]
[334813979,1723603864360,-6185.17,0.00013972,2]
[334813980,1723603864370,-500.0,0.00013972,2]
[334813981,1723603864380,-500.0,0.00013972,2]
[334813982,1723603864391,-470.78659492,0.00013972,2]
[334813983,1723603864401,-400.0,0.00013972,2]
[334813984,1723603864410,-3208.28,0.00013972,2]
[334813985,1723603864420,-1318.76,0.00013972,2]
[334813986,1723603864430,-800.93,0.00013972,2]
[334813987,1723603864440,-1811.7,0.00013972,2]
[334813988,1723603864450,-566.62,0.00013972,2]
[334813989,1723603864460,-1246.41,0.00013972,2]
[334813990,1723603864470,-1088.88,0.00013972,2]
[334813991,1723603864479,-3837.15,0.00013972,2]
[334813992,1723603864489,-500.0,0.00013972,2]
[334813993,1723603864500,-527.54109362,0.00013972,2]
[334813994,1723603864510,-749.39,0.00013972,2]
[334813995,1723603864521,-500.0,0.00013972,2]
[334813996,1723603864531,-500.0,0.00013972,2]
[334813997,1723603864542,-3163.1,0.00013972,2]
[334813998,1723603864551,-500.0,0.00013972,2]
[334813999,1723603864561,-500.0,0.00013972,2]
[334814000,1723603864571,-3420.09,0.00013972,2]
[334814001,1723603864582,-500.0,0.00013972,2]
[334814002,1723603864592,-2037.52,0.00013972,2]
[334814003,1723603864602,-151.0,0.00013972,2]
[334814004,1723603864618,-6114.43,0.00013972,2]
[334814005,1723603864628,-63525.08,0.00013972,2]
[334814006,1723603864641,-151.0,0.00013972,2]
[334814007,1723603864650,-151.0,0.00013972,2]
[334814008,1723603864660,-622.28,0.00013972,2]
[334814009,1723603864670,-978.75,0.00013972,2]
[334814010,1723603864682,-500.0,0.00013972,2]
[334814011,1723603864692,-151.0,0.00013972,2]
[334814012,1723603864703,-500.0,0.00013972,2]
[334814013,1723603864712,-500.0,0.00013972,2]
[334814014,1723603864722,-151.0,0.00013972,2]
[334814015,1723603864732,-151.0,0.00013972,2]
[334814016,1723603864743,-500.0,0.00013972,2]
[334814017,1723603864752,-22338.65,0.00013972,2]
[334814018,1723603864762,-3038.65,0.00013972,2]
[334814019,1723603864773,-500.0,0.00013972,2]
[334814020,1723603864782,-518.31,0.00013972,2]
[334814021,1723603864792,-3343.58,0.00013972,2]
[334814022,1723603864801,-500.0,0.00013972,2]
[334814023,1723603864811,-2760.28,0.00013972,2]
[334814024,1723603864821,-500.0,0.00013972,2]
[334814025,1723603864830,-1040.52,0.00013972,2]
[334814026,1723603864839,-3325.87,0.00013972,2]
[334814027,1723603864849,-1000.0,0.00013972,2]
[334814028,1723603864860,-1095.39,0.00013972,2]
[334814029,1723603864869,-500.0,0.00013972,2]
[334814030,1723603864879,-773.26,0.00013972,2]
[334814031,1723603864889,-500.0,0.00013972,2]
[334814032,1723603864898,-500.0,0.00013972,2]
[334814033,1723603864908,-8871.6,0.00013972,2]
[334814034,1723603864918,-4053.29,0.00013972,2]
[334814035,1723603864928,-500.0,0.00013972,2]
[334814036,1723603864937,-500.0,0.00013972,2]
[334814037,1723603864949,-151.0,0.00013972,2]
[334814038,1723603864959,-151.0,0.00013972,2]
[334814039,1723603864969,-151.0,0.00013972,2]
[334814040,1723603864978,-500.0,0.00013972,2]
[334814041,1723603864988,-2287.9,0.00013972,2]
[334814042,1723603864999,-1012.12,0.00013972,2]
[334814043,1723603865008,-500.0,0.00013972,2]
[334814044,1723603865017,-1400.49,0.00013972,2]
[334814045,1723603865027,-948.38,0.00013972,2]
[334814046,1723603865037,-500.0,0.00013972,2]
[334814047,1723603865046,-574.76,0.00013972,2]
[334814048,1723603865056,-1923.55,0.00013972,2]
[334814049,1723603865066,-500.0,0.00013972,2]
[334814050,1723603865076,-756.47,0.00013972,2]
[334814051,1723603865086,-1806.66,0.00013972,2]
[334814052,1723603865095,-1028.89,0.00013972,2]
[334814053,1723603865107,-500.0,0.00013972,2]
[334814054,1723603865117,-502.20267899,0.00013972,2]
[334814055,1723603865126,-5711.31,0.00013972,2]
[334814056,1723603865136,-500.0,0.00013972,2]
[334814057,1723603865145,-5949.67,0.00013972,2]
[334814058,1723603865155,-500.0,0.00013972,2]
[334814059,1723603865165,-500.0,0.00013972,2]
[334814060,1723603865174,-500.0,0.00013972,2]
[334814061,1723603865184,-500.0,0.00013972,2]
[334814062,1723603865193,-1165.14,0.00013972,2]
[334814063,1723603865203,-500.0,0.00013972,2]
[334814064,1723603865213,-500.0,0.00013972,2]
[334814065,1723603865223,-500.0,0.00013972,2]
[334814066,1723603865232,-3527.81,0.00013972,2]
[334814067,1723603865243,-500.0,0.00013972,2]
[334814068,1723603865253,-500.0,0.00013972,2]
[334814069,1723603865262,-503.89,0.00013972,2]
[334814070,1723603865271,-500.0,0.00013972,2]
[334814071,1723603865281,-500.0,0.00013972,2]
[334814072,1723603865291,-620.98759453,0.00013972,2]
[334814073,1723603865301,-4643.86,0.00013972,2]
[334814074,1723603865311,-657.34,0.00013972,2]
[334814075,1723603865321,-5304.78,0.00013972,2]
[334814076,1723603865331,-500.0,0.00013972,2]
[334814077,1723603865340,-793.68,0.00013972,2]
[334814078,1723603865350,-500.0,0.00013972,2]
[334814079,1723603865363,-500.0,0.00013972,2]
[334814080,1723603865372,-1291.51,0.00013972,2]
[334814081,1723603865382,-500.0,0.00013972,2]
[334814082,1723603865392,-3534.72,0.00013972,2]
[334814083,1723603865402,-866.3,0.00013972,2]
[334814084,1723603865412,-4085.63,0.00013972,2]
[334814085,1723603865422,-500.0,0.00013972,2]
[334814086,1723603865432,-500.0,0.00013972,2]
[334814087,1723603865443,-500.0,0.00013972,2]
[334814088,1723603865452,-1860.39,0.00013972,2]
[334814089,1723603865462,-500.0,0.00013972,2]
[334814090,1723603865472,-500.0,0.00013972,2]
[334814091,1723603865482,-500.0,0.00013972,2]
[334814092,1723603865491,-500.0,0.00013972,2]
[334814093,1723603865501,-500.0,0.00013972,2]
[334814094,1723603865510,-8721.03,0.00013972,2]
[334814095,1723603865519,-151.0,0.00013972,2]
[334814096,1723603865529,-500.0,0.00013972,2]
[334814097,1723603865538,-545.46,0.00013972,2]
[334814098,1723603865548,-500.0,0.00013972,2]
[334814099,1723603865557,-152.185758,0.00013972,2]
[334814100,1723603865567,-500.0,0.00013972,2]
[334814101,1723603865576,-491.27257817,0.00013972,2]
[334814102,1723603865586,-500.0,0.00013972,2]
[334814103,1723603865595,-505.23,0.00013972,2]
[334814104,1723603865607,-2674.62,0.00013972,2]
[334814105,1723603865616,-500.0,0.00013972,2]
[334814106,1723603865626,-726.24,0.00013972,2]
[334814107,1723603865635,-1060.17,0.00013972,2]
[334814108,1723603865645,-500.0,0.00013972,2]
[334814109,1723603865654,-500.0,0.00013972,2]
[334814110,1723603865664,-2300.78,0.00013972,2]
[334814111,1723603865673,-1807.13,0.00013972,2]
[334814112,1723603865682,-500.0,0.00013972,2]
[334814113,1723603865692,-1069.54,0.00013972,2]
[334814114,1723603865701,-500.0,0.00013972,2]
[334814115,1723603865713,-4235.05,0.00013972,2]
[334814116,1723603865722,-500.0,0.00013972,2]
[334814117,1723603865731,-500.0,0.00013972,2]
[334814118,1723603865742,-9482.49,0.00013972,2]
[334814119,1723603865752,-500.0,0.00013972,2]
[334814120,1723603865763,-3912.2,0.00013972,2]
[334814121,1723603865773,-1133.78,0.00013972,2]
[334814122,1723603865784,-674.92,0.00013972,2]
[334814123,1723603865794,-500.0,0.00013972,2]
[334814124,1723603865804,-500.0,0.00013972,2]
[334814125,1723603865814,-500.0,0.00013972,2]
[334814126,1723603865823,-500.0,0.00013972,2]
[334814127,1723603865834,-700.06,0.00013972,2]
[334814128,1723603865845,-500.0,0.00013972,2]
[334814129,1723603865855,-3352.95,0.00013972,2]
[334814130,1723603865864,-151.0,0.00013972,2]
[334814131,1723603865874,-500.0,0.00013972,2]
[334814132,1723603865883,-500.0,0.00013972,2]
[334814133,1723603865892,-151.0,0.00013972,2]
[334814134,1723603865902,-550.05,0.00013972,2]
[334814135,1723603865911,-5658.96,0.00013972,2]
[334814136,1723603865920,-151.0,0.00013972,2]
[334814137,1723603865930,-500.0,0.00013972,2]
[334814138,1723603865939,-1004.73,0.00013972,2]
[334814139,1723603865954,-500.0,0.00013972,2]
[334814140,1723603865966,-4266.51,0.00013972,2]
[334814141,1723603865975,-2152.34,0.00013972,2]
[334814142,1723603865986,-505.02019241,0.00013972,2]
[334814143,1723603865994,-500.0,0.00013972,2]
[334814144,1723603866003,-2495.73,0.00013972,2]
[334814145,1723603866012,-500.0,0.00013972,2]
[334814146,1723603866025,-3010.43,0.00013972,2]
[334814147,1723603866036,-500.0,0.00013972,2]
[334814148,1723603866047,-500.0,0.00013972,2]
[334814149,1723603866058,-712.46,0.00013972,2]
[334814150,1723603866067,-1442.97,0.00013972,2]
[334814151,1723603866076,-500.0,0.00013972,2]
[334814152,1723603866086,-500.0,0.00013972,2]
[334814153,1723603866095,-4860.84,0.00013972,2]
[334814154,1723603866105,-936.95,0.00013972,2]
[334814155,1723603866115,-500.0,0.00013972,2]
[334814156,1723603866124,-2182.64,0.00013972,2]
[334814157,1723603866133,-545.37,0.00013972,2]
[334814158,1723603866142,-500.0,0.00013972,2]
[334814159,1723603866151,-500.0,0.00013972,2]
[334814160,1723603866160,-517.19,0.00013972,2]
[334814161,1723603866169,-972.49,0.00013972,2]
[334814162,1723603866178,-500.0,0.00013972,2]
[334814163,1723603866187,-500.0,0.00013972,2]
[334814164,1723603866196,-5817.55,0.00013972,2]
[334814165,1723603866205,-16358.47,0.00013972,2]
[334814166,1723603866214,-500.0,0.00013972,2]
[334814167,1723603866223,-500.0,0.00013972,2]
[334814168,1723603866232,-1852.9,0.00013972,2]
[334814169,1723603866241,-1343.6,0.00013972,2]
[334814170,1723603866250,-500.0,0.00013972,2]
[334814171,1723603866260,-1032.88,0.00013972,2]
[334814172,1723603866270,-500.0,0.00013972,2]
[334814173,1723603866280,-1649.15,0.00013972,2]
[334814174,1723603866290,-500.0,0.00013972,2]
[334814175,1723603866299,-12284.49,0.00013972,2]
[334814176,1723603866308,-1289.77,0.00013972,2]
[334814177,1723603866317,-500.0,0.00013972,2]
[334814178,1723603866327,-571.44,0.00013972,2]
[334814179,1723603866336,-500.0,0.00013972,2]
[334814180,1723603866345,-3024.67,0.00013972,2]
[334814181,1723603866356,-1347.07,0.00013972,2]
[334814182,1723603866365,-500.0,0.00013972,2]
[334814183,1723603866374,-500.0,0.00013972,2]
[334814184,1723603866384,-500.0,0.00013972,2]
[334814185,1723603866394,-500.0,0.00013972,2]
[334814186,1723603866403,-500.0,0.00013972,2]
[334814187,1723603866412,-2375.11,0.00013972,2]
[334814188,1723603866421,-500.0,0.00013972,2]
[334814189,1723603866430,-5867.25,0.00013972,2]
[334814190,1723603866440,-1236.61,0.00013972,2]
[334814191,1723603866449,-15446.76,0.00013972,2]
[334814192,1723603866458,-500.0,0.00013972,2]
[334814193,1723603866467,-151.0,0.00013972,2]
[334814194,1723603866476,-811.27,0.00013972,2]
[334814195,1723603866486,-1109.97,0.00013972,2]
[334814196,1723603866495,-151.0,0.00013972,2]
[334814197,1723603866504,-500.0,0.00013972,2]
[334814198,1723603866513,-500.0,0.00013972,2]
[334814199,1723603866522,-500.0,0.00013972,2]
[334814200,1723603866531,-500.0,0.00013972,2]
[334814201,1723603866540,-1183.37,0.00013972,2]
[334814202,1723603866550,-483.00576395,0.00013972,2]
[334814203,1723603866559,-1985.01,0.00013972,2]
[334814204,1723603866568,-500.0,0.00013972,2]
[334814205,1723603866578,-500.0,0.00013972,2]
[334814206,1723603866587,-500.0,0.00013972,2]
[334814207,1723603866596,-500.0,0.00013972,2]
[334814208,1723603866606,-505.76,0.00013972,2]
[334814209,1723603866615,-3394.27,0.00013972,2]
[334814210,1723603866624,-500.0,0.00013972,2]
[334814211,1723603866633,-500.0,0.00013972,2]
[334814212,1723603866642,-2263.87,0.00013972,2]
[334814213,1723603866651,-500.0,0.00013972,2]
[334814214,1723603866660,-504.63,0.00013972,2]
[334814215,1723603866669,-2351.17,0.00013972,2]
[334814216,1723603866678,-2208.39,0.00013972,2]
[334814217,1723603866687,-500.0,0.00013972,2]
[334814218,1723603866696,-500.0,0.00013972,2]
[334814219,1723603866706,-500.0,0.00013972,2]
[334814220,1723603866715,-304.194904,0.00013972,2]
[334814221,1723603866724,-304.194904,0.00013972,2]
[334814222,1723603866733,-534.4,0.00013972,2]
[334814223,1723603866743,-1991.48,0.00013972,2]
[334814224,1723603866752,-304.194904,0.00013972,2]
[334814225,1723603866761,-1195.4,0.00013972,2]
[334814226,1723603866770,-9415.38,0.00013972,2]
[334814227,1723603866779,-500.0,0.00013972,2]
[334814228,1723603866789,-436.4390054,0.00013972,2]
[334814229,1723603866798,-500.0,0.00013972,2]
[334814230,1723603866807,-694.34,0.00013972,2]
[334814231,1723603866816,-500.0,0.00013972,2]
[334814232,1723603866826,-5022.91,0.00013972,2]
[334814233,1723603866835,-304.194904,0.00013972,2]
[334814234,1723603866844,-304.194904,0.00013972,2]
[334814235,1723603866853,-3719.98,0.00013972,2]
[334814236,1723603866863,-304.194904,0.00013972,2]
[334814237,1723603866872,-2311.62,0.00013972,2]
[334814238,1723603866881,-3286.97,0.00013972,2]
[334814239,1723603866890,-500.0,0.00013972,2]
[334814240,1723603866900,-2601.74,0.00013972,2]
[334814241,1723603866910,-500.0,0.00013972,2]
[334814242,1723603866919,-946.485974,0.00013972,2]
[334814243,1723603866927,-946.485974,0.00013972,2]
[334814244,1723603866937,-946.485974,0.00013972,2]
[334814245,1723603866947,-925.2,0.00013972,2]
[334814246,1723603866958,-500.0,0.00013972,2]
[334814247,1723603866967,-500.0,0.00013972,2]
[334814248,1723603866976,-500.0,0.00013972,2]
[334814249,1723603866987,-4841.27,0.00013972,2]
[334814250,1723603867215,-500.0,0.00013972,2]
[334814251,1723603867224,-946.485974,0.00013972,2]
[334814252,1723603867234,-946.485974,0.00013972,2]
[334814253,1723603867243,-4804.39,0.00013972,2]
[334814254,1723603867252,-602.44,0.00013972,2]
[334814255,1723603867261,-946.485974,0.00013972,2]
[334814256,1723603867270,-2504.28,0.00013972,2]
[334814257,1723603867280,-30408.94,0.00013972,2]
[334814258,1723603867289,-500.0,0.00013972,2]
[334814259,1723603867298,-1009.0,0.00013972,2]
[334814260,1723603867308,-500.0,0.00013972,2]
[334814261,1723603867317,-1655.13,0.00013972,2]
[334814262,1723603867326,-500.0,0.00013972,2]
[334814263,1723603867336,-1618.42,0.00013972,2]
[334814264,1723603867345,-500.0,0.00013972,2]
[334814265,1723603867354,-500.0,0.00013972,2]
[334814266,1723603867364,-500.0,0.00013972,2]
[334814267,1723603867373,-500.0,0.00013972,2]
[334814268,1723603867382,-500.0,0.00013972,2]
[334814269,1723603867393,-541.79,0.00013972,2]
[334814270,1723603867402,-1939.34,0.00013972,2]
[334814271,1723603867411,-3634.01,0.00013972,2]
[334814272,1723603867421,-1318.54,0.00013972,2]
[334814273,1723603867430,-500.0,0.00013972,2]
[334814274,1723603867439,-5437.68,0.00013972,2]
[334814275,1723603867449,-500.0,0.00013972,2]
[334814276,1723603867458,-500.0,0.00013972,2]
[334814277,1723603867467,-500.0,0.00013972,2]
[334814278,1723603867476,-7831.1,0.00013972,2]
[334814279,1723603867486,-1038.5,0.00013972,2]
[334814280,1723603867495,-500.0,0.00013972,2]
[334814281,1723603867504,-500.0,0.00013972,2]
[334814282,1723603867513,-7282.92,0.00013972,2]
[334814283,1723603867522,-3021.74,0.00013972,2]
[334814284,1723603867532,-500.0,0.00013972,2]
[334814285,1723603867541,-887.76,0.00013972,2]
[334814286,1723603867550,-726.19,0.00013972,2]
[334814287,1723603867560,-500.0,0.00013972,2]
[334814288,1723603867569,-500.0,0.00013972,2]
[334814289,1723603867578,-500.0,0.00013972,2]
[334814290,1723603867587,-500.0,0.00013972,2]
[334814291,1723603867596,-640.09,0.00013972,2]
[334814292,1723603867605,-6303.41,0.00013972,2]
[334814293,1723603867614,-1486.12,0.00013972,2]
[334814294,1723603867624,-500.0,0.00013972,2]
[334814295,1723603867633,-1465.83,0.00013972,2]
[334814296,1723603867643,-500.0,0.00013972,2]
[334814297,1723603867652,-500.0,0.00013972,2]
[334814298,1723603867661,-2619.71,0.00013972,2]
[334814299,1723603867671,-1599.17,0.00013972,2]
[334814300,1723603867680,-2403.52,0.00013972,2]
[334814301,1723603867689,-6526.45,0.00013972,2]
[334814302,1723603867699,-500.0,0.00013972,2]
[334814303,1723603867708,-151.0,0.00013972,2]
[334814304,1723603867717,-158.484584,0.00013972,2]
[334814305,1723603867727,-775.24,0.00013972,2]
[334814306,1723603867736,-500.0,0.00013972,2]
[334814307,1723603867745,-500.0,0.00013972,2]
[334814308,1723603867754,-617.42,0.00013972,2]
[334814309,1723603867763,-2020.58,0.00013972,2]
[334814310,1723603867772,-564.1,0.00013972,2]
[334814311,1723603867781,-580.53256377,0.00013972,2]
[334814312,1723603867790,-500.0,0.00013972,2]
[334814313,1723603867800,-3030.89,0.00013972,2]
[334814314,1723603867809,-500.0,0.00013972,2]
[334814315,1723603867818,-970.69,0.00013972,2]
[334814316,1723603867827,-500.0,0.00013972,2]
[334814317,1723603867837,-1492.57,0.00013972,2]
[334814318,1723603867846,-500.0,0.00013972,2]
[334814319,1723603867856,-500.0,0.00013972,2]
[334814320,1723603867865,-6500.63,0.00013972,2]
[334814321,1723603867874,-500.0,0.00013972,2]
[334814322,1723603867883,-8083.22,0.00013972,2]
[334814323,1723603867893,-12415.65,0.00013972,2]
[334814324,1723603867902,-2641.04,0.00013972,2]
[334814325,1723603867911,-748.52,0.00013972,2]
[334814326,1723603867921,-500.0,0.00013972,2]
[334814327,1723603867930,-3609.21,0.00013972,2]
[334814328,1723603867940,-500.0,0.00013972,2]
[334814329,1723603867952,-500.0,0.00013972,2]
[334814330,1723603867961,-500.0,0.00013972,2]
[334814331,1723603867970,-776.31,0.00013972,2]
[334814332,1723603867980,-851.45,0.00013972,2]
[334814333,1723603867990,-500.0,0.00013972,2]
[334814334,1723603867999,-500.0,0.00013972,2]
[334814335,1723603868008,-500.0,0.00013972,2]
[334814336,1723603868018,-500.0,0.00013972,2]
[334814337,1723603868028,-500.0,0.00013972,2]
[334814338,1723603868037,-654.47,0.00013972,2]
[334814339,1723603868046,-500.0,0.00013972,2]
[334814340,1723603868055,-500.0,0.00013972,2]
[334814341,1723603868064,-500.0,0.00013972,2]
[334814342,1723603868073,-500.0,0.00013972,2]
[334814343,1723603868082,-514.11,0.00013972,2]
[334814344,1723603868091,-500.0,0.00013972,2]
[334814345,1723603868100,-1374.17,0.00013972,2]
[334814346,1723603868109,-500.0,0.00013972,2]
[334814347,1723603868119,-500.0,0.00013972,2]
[334814348,1723603868128,-771.96,0.00013972,2]
[334814349,1723603868137,-500.0,0.00013972,2]
[334814350,1723603868146,-500.0,0.00013972,2]
[334814351,1723603868156,-500.0,0.00013972,2]
[334814352,1723603868164,-1584.87,0.00013972,2]
[334814353,1723603868174,-733.22,0.00013972,2]
[334814354,1723603868183,-500.0,0.00013972,2]
[334814355,1723603868192,-500.0,0.00013972,2]
[334814356,1723603868202,-2100.84,0.00013972,2]
[334814357,1723603868211,-6987.78,0.00013972,2]
[334814358,1723603868220,-500.0,0.00013972,2]
[334814359,1723603868229,-500.0,0.00013972,2]
[334814360,1723603868238,-500.0,0.00013972,2]
[334814361,1723603868247,-500.0,0.00013972,2]
[334814362,1723603868256,-37359.85,0.00013972,2]
[334814363,1723603868265,-500.0,0.00013972,2]
[334814364,1723603868274,-500.0,0.00013972,2]
[334814365,1723603868284,-500.0,0.00013972,2]
[334814366,1723603868293,-500.0,0.00013972,2]
[334814367,1723603868302,-500.0,0.00013972,2]
[334814368,1723603868311,-4485.26,0.00013972,2]